Cogmind - Beta 16 @@@ ROGUE MODE // 2026.01.08 @ 20:24:48 Player: Blaf Result: Destroyed by Y-45 Defender with Beam Rifle Performance ------------- Evolutions (2) 1000 Regions Visited (5) 1000 Robots Destroyed (70) 350 Value Destroyed (2119) 2119 Prototype IDs (0) 0 Alien Tech Used (0) 0 Bonus (32) 32 TOTAL SCORE: 4501 Bonus ------- High Alert Combat Kills 32 Cogmind --------- Core Integrity 0/550 Matter 300/300 Energy 100/100 System Corruption 7% Temperature Cool (9) Movement Core (50) Location -8/Materials Parts ------- > --- POWER (2) -------- (None) > --- PROPULSION (4) --- (None) > --- UTILITY (3) ------ (None) > --- WEAPON (2) ------- (None) > --- INVENTORY (5) ---- (None) Peak State ------------ > --- POWER ------------ Light Ion Engine Light Nuclear Core > --- PROPULSION ------- Carbon-fiber Leg Titanium Leg Improved Carbon-fiber Leg Improved Carbon-fiber Leg > --- UTILITY ---------- Improved Sensor Array Armor Integrity Analyzer Hardened Medium Armor Plating > --- WEAPON ----------- Heavy Assault Rifle High-powered Shotgun > --- INVENTORY -------- Aluminum Leg Aluminum Leg Heavy Assault Rifle Heavy Assault Rifle Rocket Launcher [Rating: 33] Favorites ----------- Power Light Ion Engine Engine Light Ion Engine Power Core Light Nuclear Core Propulsion Aluminum Leg Treads Light Treads Leg Aluminum Leg Wheel Wheel Flight Unit Flight Unit Utility Small Storage Unit Device Improved Sensor Array Storage Small Storage Unit Processor Terrain Scan Processor Protection Light Armor Plating Weapon Heavy Assault Rifle Energy Gun EM Pulse Gun Ballistic Gun Heavy Assault Rifle Launcher Rocket Launcher Build | -11 -10 -10 -9 -9 -8 ------- Run | Yrd Mat Min Mat Min Mat Slots Evolved 4 | . . . 2 . 2 Power 1 | . . . . . 1 Propulsion 2 | . . . 1 . 1 Utility 1 | . . . 1 . . Weapon . | . . . . . . Parts Attached 64 | 6 18 2 14 . 24 Power 9 | 1 2 . 2 . 4 Engine 7 | 1 2 . 2 . 2 Core 2 | . . . . . 2 Reactor . | . . . . . . Propulsion 27 | 2 8 . 5 . 12 Treads 3 | 2 . . . . 1 Leg 16 | . 3 . 2 . 11 Wheel 5 | . 2 . 3 . . Hover . | . . . . . . Flight 3 | . 3 . . . . Utility 13 | 1 3 1 3 . 5 Device 5 | . 2 1 1 . 1 Storage 3 | 1 1 . 1 . . Processor 2 | . . . . . 2 Hackware . | . . . . . . Protection 3 | . . . 1 . 2 Artifact . | . . . . . . Weapon 15 | 2 5 1 4 . 3 Energy Gun 2 | 2 . . . . . Energy Cannon . | . . . . . . Ballistic Gun 9 | . 5 . 2 . 2 Ballistic Cannon . | . . . . . . Launcher 4 | . . 1 2 . 1 Special Weapon . | . . . . . . Impact Weapon . | . . . . . . Slashing Weapon . | . . . . . . Piercing Weapon . | . . . . . . Special Melee Weapon . | . . . . . . Unidentified Prototypes . | . . . . . . Parts Lost 29 | . 3 . 9 . 17 Power 6 | . 1 . 1 . 4 Propulsion 11 | . 1 . 4 . 6 Utility 6 | . 1 . 2 . 3 Weapon 6 | . . . 2 . 4 Highest Loss Streak 10 | . 2 . 6 . 10 To Critical Strikes . | . . . . . . Average Backups 2 | . 2 4 3 1 3 Power . | . . . . . . Propulsion . | . . 2 . . . Utility . | . . . . . . Weapon 1 | . . 2 2 1 2 Tool/Special . | . . . . . . Unused Backups 6 | . 3 . 2 . 1 Power 1 | . 1 . . . . Propulsion 2 | . 1 . 1 . . Utility 1 | . . . 1 . . Weapon 2 | . 1 . . . 1 Tool/Special . | . . . . . . Average Slot Usage (%) 80 | . 89 79 61 88 90 Engine 11 | . 13 14 8 11 13 Core 1 | . . . . . 3 Treads 2 | . 8 . . . . Leg 18 | . 3 28 17 11 30 Wheel 4 | . 1 . 6 22 1 Flight 3 | . 13 . . . . Device 8 | . 10 13 7 . 6 Storage 5 | . 9 . 1 11 5 Protection 4 | . . . 3 11 9 Energy Gun 3 | . 12 2 1 . . Ballistic Gun 14 | . 16 11 10 22 16 Launcher 2 | . . 8 5 . . Peak Build Rating 33 | 6 7 14 18 10 33 Average Rating 12 | 4 6 9 10 10 21 On Entrance 7 | . 6 6 14 10 10 Avg Prop Armor Cover (%) 6 | . 11 . 6 6 7 Naked Turns 30 | . . . 25 . 5 Heaviest Build 34 | 11 23 14 23 17 34 Greatest Support 68 | 40 40 20 33 26 68 Greatest Overweight (x) 3 | . 2 . 3 . 1 Average Overweight (x) . | . . . . . . Largest Inventory Capacity 10 | 8 10 5 8 8 8 Average Capacity 6 | 7 6 5 5 8 6 Most Carried 8 | 1 5 5 5 1 8 Average Carried 2 | . 2 4 2 1 3 Final Capacity 8 | 8 5 5 8 8 5 Final Carried 5 | 1 3 5 1 1 . Scrap Suit Usage (%) 16 | . . 47 43 . . Parts Cannibalized 2 | . . 1 1 . . Class Distribution -------------------- 54% | Mutant 41% | Scavenger-Mutant Dominant Class ---------------- Mutant | -10/Materials Scavenger-Mutant | -10/Mines Mutant | -9/Materials Scavenger-Mutant | -9/Mines Scavenger-Mutant | -8/Materials Resources | -11 -10 -10 -9 -9 -8 ----------- Run | Yrd Mat Min Mat Min Mat Matter Collected 2163 | 186 327 54 552 61 983 Remotely . | . . . . . . Salvage Created 2166 | . 461 54 489 . 1162 Parts 135 | . 32 4 34 . 65 Haulers Intercepted . | . . . . . . Recyclers Shooed 3 | . . . 3 . . Parts Field Recycled . | . . . . . . Retrieved Matter . | . . . . . . Parts Self-Destructed . | . . . . . . Prevented . | . . . . . . Parts Restored . | . . . . . . Kills | -11 -10 -10 -9 -9 -8 ------- Run | Yrd Mat Min Mat Min Mat Combat Hostiles Destroyed 51 | . 14 4 6 . 27 Melee 2 | . . . . . 2 Guns 39 | . 14 . 4 . 21 AOE 10 | . . 4 2 . 4 Classes Destroyed 13 | . 3 1 6 . 3 Worker 5 | . . . 3 . 2 Builder 2 | . . . 2 . . Tunneler 2 | . . . 2 . . Recycler 4 | . . . 3 . 1 Operator 2 | . . . 2 . . Watcher 6 | . 2 . 2 . 2 Swarmer 9 | . 6 . . . 3 Grunt 25 | . 8 2 3 . 12 Brawler 1 | . . . . . 1 Duelist 2 | . . . . . 2 Sentry 8 | . . . 3 . 5 Specialist 4 | . . . . . 4 Assembled 2 | . . 2 . . . Best Kill Streak 6 | . 4 2 5 . 6 Combat Bots Only 5 | . 4 2 2 . 5 Max Kills in Single Turn 2 | . 2 2 2 . 2 Gunslinging 1 | . 1 . . . . Exploded 2 | . . 2 1 . 2 Melee 1 | . . . . . 1 Uniques/NPCs Destroyed . | . . . . . . Combat | -11 -10 -10 -9 -9 -8 -------- Run | Yrd Mat Min Mat Min Mat Hostile Shots Fired 373 | . 69 5 116 . 183 Missed 114 | . 27 2 40 . 45 Hits 259 | . 42 3 76 . 138 Melee 13 | . . . . . 13 Projectile 246 | . 42 3 76 . 125 AOE 1 | . . . . 1 . Critical Strikes 9 | . 1 . 2 . 6 Damage Taken 4578 | . 462 128 1364 22 2602 Core 975 | . 128 . 295 . 552 Absorbed by Shields . | . . . . . . Regen/Repaired (Parts) 19 | . . 10 9 . . Core Remaining (%) 58 | 100 . 48 . 26 . Volleys Fired 262 | . 51 8 80 . 123 Largest 2 | . 2 1 2 . 2 Hottest 80 | . 80 33 66 . 48 Shots Fired 426 | . 102 8 101 . 215 Gun 388 | . 102 . 78 . 208 Cannon . | . . . . . . Launcher 38 | . . 8 23 . 7 Special . | . . . . . . Kinetic 364 | . 78 . 78 . 208 Thermal 12 | . 12 . . . . Explosive 38 | . . 8 23 . 7 Electromagnetic 12 | . 12 . . . . Robot Hit Streak 11 | . 11 1 11 . 11 Robot Miss Streak 8 | . 4 . 4 . 8 Penetration Max . | . . . . . . Secondary Targets 6 | . 4 . . . 2 Max Gunslinging Chain 1 | . 1 . . . 1 Shots Hit Robots 251 | . 51 1 59 . 140 Core Hits 143 | . 27 4 34 . 78 Critical Kills 4 | . 1 . 1 . 2 Critical Parts Destroyed 1 | . . . . . 1 Critical Strikes 5 | . 1 . 1 . 3 Destroy 5 | . 1 . 1 . 3 Melee Attacks . | . . . . . . Impact . | . . . . . . Slashing . | . . . . . . Piercing . | . . . . . . Sneak Attacks . | . . . . . . Combat Hostiles . | . . . . . . Follow-up Attacks . | . . . . . . Damage Inflicted 4677 | . 503 224 1343 . 2607 Guns 3371 | . 503 . 606 . 2262 Cannons . | . . . . . . Explosions 1263 | . . 224 737 . 302 Melee . | . . . . . . Ramming 43 | . . . . . 43 Kinetic 3180 | . 312 . 606 . 2262 Thermal 65 | . 65 . . . . Explosive 1263 | . . 224 737 . 302 Electromagnetic 126 | . 126 . . . . Impact . | . . . . . . Slashing . | . . . . . . Piercing . | . . . . . . Highest Corruption 7 | . . . 2 2 7 Average Corruption 3 | . . . 2 2 7 Corruption Purged . | . . . . . . Corruption Blocked . | . . . . . . Effects 21 | . . . 9 1 11 Message Errors 2 | . . . 2 . . Matter Fused 8 | . . . 2 1 5 Heat Flow Errors 3 | . . . 1 . 2 Energy Discharges 5 | . . . 3 . 2 Data Loss (minor) 2 | . . . 1 . 1 Alerts 1 | . . . . . 1 Overload Shots . | . . . . . . Overflow Damage . | . . . . . . Projectiles . | . . . . . . Explosions . | . . . . . . Melee . | . . . . . . Knockbacks . | . . . . . . Impact . | . . . . . . Kinetic . | . . . . . . Secondary . | . . . . . . Self-Inflicted Damage 223 | . . 93 76 . 54 Shots 7 | . . 3 2 . 2 Rammed 3 | . . . . . 3 Targets Rammed 22 | . . . . . 22 Kicked 19 | . . . . . 19 Crushed . | . . . . . . Highest Temperature 367 | . 123 4 108 . 367 Average Temperature 71 | . 19 3 27 . 94 Received Heat Transfer 1374 | . 183 18 390 . 783 Effects 5 | . . . . . 5 Shutdowns 2 | . . . . . 2 Energy Bleed 1 | . . . . . 1 Interference 2 | . . . . . 2 Siege Activations . | . . . . . . Martial Activations . | . . . . . . Shielding Activations . | . . . . . . Robots Disrupted . | . . . . . . Combat Hostiles . | . . . . . . Robots Corrupted . | . . . . . . Combat Hostiles . | . . . . . . Parts Fried . | . . . . . . Impact Corruptions . | . . . . . . Robots Melted . | . . . . . . Combat Hostiles . | . . . . . . Parts Melted . | . . . . . . Heat Transferred 150 | . 150 . . . . Parts Sabotaged . | . . . . . . Parts Stolen . | . . . . . . Parts Stripped . | . . . . . . Power Chain Reactions . | . . . . . . Alert | -11 -10 -10 -9 -9 -8 ------- Run | Yrd Mat Min Mat Min Mat Maximum Alert Level 2 | . . . . . 2 Low Security (%) 90 | 100 100 100 100 100 70 Level 1 7 | . . . . . 24 Level 2 1 | . . . . . 5 Level 3 . | . . . . . . Level 4 . | . . . . . . Level 5 . | . . . . . . High Security . | . . . . . . Max Security . | . . . . . . Peak Influence 415 | . 184 57 153 30 415 Initial 57 | . . 57 6 29 . Average 71 | . 53 19 61 10 123 Influence Increases 1994 | . 479 77 525 45 868 Destroy 0b10 Robot/C 980 | . 280 40 120 . 540 Destroy 0b10 Robot/NC 105 | . 10 . 70 . 25 Destroy Leader 232 | . 54 . 54 . 124 Successful Hack 4 | . . . 4 . . Disable Machine 105 | . . . 45 . 60 Destroy Structure 208 | . . 37 127 . 44 Partial Spotted 15 | . . . 15 . . Lose Combat Pursuer 345 | . 135 . 90 45 75 Influence Decreases 1625 | . 331 208 466 121 499 Entered New Map 149 | . . 91 11 47 . Time Decay 1186 | . 301 117 365 74 329 Lost Part 290 | . 30 . 90 . 170 Squads Dispatched 11 | . 2 . 3 . 6 Investigation 1 | . 1 . . . . Extermination . | . . . . . . Reinforcement 8 | . 1 . 3 . 4 Assault . | . . . . . . Garrison 2 | . . . . . 2 Intercept . | . . . . . . Searches Triggered . | . . . . . . Construction Impeded 1 | . . . 1 . . Haulers Reinforced . | . . . . . . Active Scanning Responses . | . . . . . . Cargo Convoy Interrupts . | . . . . . . Stealth | -11 -10 -10 -9 -9 -8 --------- Run | Yrd Mat Min Mat Min Mat Distress Signals 6 | . 2 . 1 . 3 Communications Jammed . | . . . . . . Distress Signals . | . . . . . . Times Spotted 102 | . 33 4 19 5 41 Peak Tracking Total 7 | . 5 2 5 3 7 Tactical Retreats 15 | . 5 . 4 3 3 Traps | -11 -10 -10 -9 -9 -8 ------- Run | Yrd Mat Min Mat Min Mat Traps Triggered 3 | . 3 . . . . Indirectly . | . . . . . . Trap Hack Attempts . | . . . . . . Triggered . | . . . . . . Disarmed . | . . . . . . Reprogrammed . | . . . . . . Reused . | . . . . . . Traps Extracted . | . . . . . . Installed . | . . . . . . Triggered . | . . . . . . Machines | -11 -10 -10 -9 -9 -8 ---------- Run | Yrd Mat Min Mat Min Mat Machines Disabled 8 | . . . 4 . 4 Max in Single Turn 2 | . . . 2 . 2 Machines Repaired . | . . . . . . Machines Dismantled . | . . . . . . Machines Sabotaged . | . . . . . . Overloaded Fab Kills . | . . . . . . Hacking | -11 -10 -10 -9 -9 -8 --------- Run | Yrd Mat Min Mat Min Mat Machines Accessed 1 | . . . 1 . . Terminals 1 | . . . 1 . . Fabricators . | . . . . . . Repair Stations . | . . . . . . Recycling Units . | . . . . . . Scanalyzers . | . . . . . . Garrison Access . | . . . . . . Total Hacks 2 | . . . 2 . . Successful 2 | . . . 2 . . Failed . | . . . . . . Catastrophic . | . . . . . . Database Lockouts . | . . . . . . Manual . | . . . . . . Terminals 2 | . . . 2 . . Fabricators . | . . . . . . Repair Stations . | . . . . . . Recycling Units . | . . . . . . Scanalyzers . | . . . . . . Garrison Access . | . . . . . . Terminal Hacks 2 | . . . 2 . . Record 2 | . . . 2 . . Fabricator Hacks . | . . . . . . Repair Station Hacks . | . . . . . . Recycling Unit Hacks . | . . . . . . Scanalyzer . | . . . . . . Garrison Access Hacks . | . . . . . . Unauthorized Hacks . | . . . . . . Terminals . | . . . . . . Fabricators . | . . . . . . Repair Stations . | . . . . . . Recycling Units . | . . . . . . Scanalyzers . | . . . . . . Garrison Access . | . . . . . . Data Cores Recovered 1 | . . . 1 . . Used . | . . . . . . Hacking Detections 1 | . . . 1 . . Full Trace Events . | . . . . . . Feedback Events . | . . . . . . Feedback Blocked . | . . . . . . Robot Schematics Acquired . | . . . . . . Robots Built . | . . . . . . Authchips . | . . . . . . Time . | . . . . . . Total Robot Build Rating . | . . . . . . Part Schematics Acquired . | . . . . . . Parts Built . | . . . . . . Authchips . | . . . . . . Time . | . . . . . . Total Part Build Rating . | . . . . . . Part Studies Acquired . | . . . . . . Parts Repaired . | . . . . . . Time . | . . . . . . Parts Recycled . | . . . . . . Recycled Matter . | . . . . . . Retrieved Matter . | . . . . . . Retrieved Components . | . . . . . . Parts Scanalyzed . | . . . . . . Part Schematics Acquired . | . . . . . . Parts Damaged . | . . . . . . Bothacking | -11 -10 -10 -9 -9 -8 ------------ Run | Yrd Mat Min Mat Min Mat Used RIF Installer . | . . . . . . Robots Hacked . | . . . . . . Non-combat . | . . . . . . Combat . | . . . . . . Robot Hacks Applied . | . . . . . . Relay Couplers Released . | . . . . . . Fabnet Peak Effective % . | . . . . . . Robots Rewired . | . . . . . . Allies Hacked . | . . . . . . Hacks Repelled . | . . . . . . Allies | -11 -10 -10 -9 -9 -8 -------- Run | Yrd Mat Min Mat Min Mat Total Allies . | . . . . . . Largest Group . | . . . . . . Highest-Rated Group . | . . . . . . Highest-Rated Ally . | . . . . . . Total Orders . | . . . . . . Ally Attacks . | . . . . . . Total Damage . | . . . . . . Kills . | . . . . . . Allies Corrupted . | . . . . . . Allies Melted . | . . . . . . Intel | -11 -10 -10 -9 -9 -8 ------- Run | Yrd Mat Min Mat Min Mat Active Infowar (turns) 1512 | . 504 178 . . 830 Sensors 830 | . . . . . 830 Terrain 682 | . 504 178 . . . Seismic 240 | . 240 . . . . Robot Analysis Total . | . . . . . . Derelict Logs Recovered 2 | . . . . 2 . Drone Launches . | . . . . . . Drone Recoveries . | . . . . . . Exploration | -11 -10 -10 -9 -9 -8 ------------- Run | Yrd Mat Min Mat Min Mat Turns Passed 4059 | 115 965 344 1123 231 1281 Spaces Moved 2880 | 67 898 270 780 257 608 Core 59 | 1 . . 54 . 4 Treads 252 | 66 150 . . . 36 Legs 1222 | . 76 270 355 . 521 Wheels 725 | . 50 . 371 257 47 Hover . | . . . . . . Flight 622 | . 622 . . . . Fastest Speed 37 | 50 37 120 80 90 50 Average Speed 104 | 158 84 120 109 90 121 Slowest Speed 260 | 160 260 120 200 90 200 Overloaded Moves . | . . . . . . Propulsion Burnouts . | . . . . . . Robots Hopped 4 | . 4 . . . . Potential Cave-ins 4 | . . 1 1 . 2 Cave-ins Triggered 4 | . . . 3 . 1 Exploration Rate (%) 46 | 5 78 42 45 65 44 Regions Visited 5 Branch Regions 2 Pre-discovered Areas 1 | . . . . 1 . Known Exits Taken . | . . . . . . Unknown Exits Taken 5 | 1 1 1 1 1 . Scrap Searched 3 | . . 1 . 2 . Spaces Dug 12 | . . . 12 . . Terrain Destroyed 247 | . . 47 154 . 46 Melee . | . . . . . . Projectile . | . . . . . . AOE 247 | . . 47 154 . 46 Terrain Rammed . | . . . . . . Walls Destroyed . | . . . . . . Machines Disabled . | . . . . . . Actions | -11 -10 -10 -9 -9 -8 --------- Run | Yrd Mat Min Mat Min Mat Total 3511 | 74 1011 282 961 256 927 Wait 209 | . 25 . 62 . 122 Move 2867 | 66 889 269 779 256 608 Hop 4 | . 4 . . . . Pick Up 23 | 2 8 . 7 . 6 Fast Attach 38 | 5 8 2 7 . 16 Attach 15 | 1 2 . 7 . 5 Detach 4 | . . 2 2 . . Swap 22 | . 9 . 4 . 9 Drop 45 | . 15 1 13 . 16 Fire 262 | . 51 8 80 . 123 Melee . | . . . . . . Ram 3 | . . . . . 3 Kick 19 | . . . . . 19 Crush . | . . . . . . Escape Stasis . | . . . . . . Rewire . | . . . . . . Trap . | . . . . . . Miscellaneous . | . . . . . . Route ------- -11/Scrapyard -10/Materials (discovered 4 exits: *Mat x2 / [*Min] / [*Sub]) -10/Mines -9/Materials -9/Mines -8/Materials (discovered 1 exit: Fac) History --------- Turn | Location | Event 11 | -11/Scrapyard | Discovered new exit (range 14) 116 | -11/Scrapyard | Entered Materials 305 | -10/Materials | Build established: Mutant 454 | -10/Materials | Discovered new exit (range 15) 547 | -10/Materials | Discovered new exit (range 13) 625 | -10/Materials | Discovered new exit (range 15) 711 | -10/Materials | Discovered new exit (range 15) 958 | -10/Materials | Core integrity fell below 50% 1081 | -10/Materials | Entered Mines 1198 | -10/Mines | Received a Rocket Launcher from a helpful Derelict 1223 | -10/Mines | Build established: Scavenger-Mutant 1253 | -10/Mines | Found a Scrap Suit stashed away for nefarious purposes 1261 | -10/Mines | Found Scrap Suit 1306 | -10/Mines | Excavation squad dispatched 1306 | -10/Mines | A large section of the Mines collapsed 1401 | -10/Mines | Discovered new exit (range 10) 1425 | -10/Mines | Entered Materials 1425 | -9/Materials | Evolved 2 slots: Propulsion x1, Utility x1 1752 | -9/Materials | Build established: Mutant 1796 | -9/Materials | Discovered new exit (range 13) 1953 | -9/Materials | Lost 6 parts (1p3n1u1w) 2059 | -9/Materials | Crushed by falling debris 2059 | -9/Materials | Core integrity fell below 50% 2078 | -9/Materials | Crushed by falling debris 2107 | -9/Materials | Crushed by falling debris 2109 | -9/Materials | Lost 3 parts (1n1u1w) 2525 | -9/Materials | Build established: Scavenger-Mutant 2548 | -9/Materials | Entered Mines 2695 | -9/Mines | Discovered new exit (range 15) 2704 | -9/Mines | Learned 2 Materials zone layouts 2722 | -9/Mines | Learned location of Storage (-9) 2779 | -9/Mines | Entered Materials 2779 | -8/Materials | Evolved 2 slots: Power x1, Propulsion x1 2780 | -8/Materials | Identified exit to Factory 3431 | -8/Materials | Build established: Mutant 3704 | -8/Materials | Crushed by falling debris 3797 | -8/Materials | Core integrity fell below 50% 3896 | -8/Materials | Build established: Scavenger-Mutant 3930 | -8/Materials | Garrison activated, responded to threat 4038 | -8/Materials | Core integrity fell below 20% 4060 | -8/Materials | Destroyed by Y-45 Defender with Beam Rifle Last Messages --------------- 04025_ Med. Armor Plating destroyed. 04025_ Kicked L-31 Rogue. 04027_ Kicked L-31 Rogue out of the way. 04028_ L-31 Rogue destroyed. 04029_ Acquired 41 matter. 04031_ Critical hit (Burn: +37). 04031_ Aluminum Leg destroyed. 04036_ Kicked Y-45 Defender. 04038_ System corrupted: IFF burst signal emitted. 04039_ Kicked Y-45 Defender. 04041_ Kicked Y-45 Defender out of the way. 04043_ Kicked Y-45 Defender. 04055_ Aluminum Leg destroyed. 04055_ Imp. Ion Engine destroyed. 04055_ Slammed into Y-45 Defender. 04056_ Y-45 Defender destroyed. 04056_ Destabilizing: Core damaged (-22). 04057_ Acquired 7 matter. 04059_ Slammed into Y-45 Defender. Map ----- +----------------------------------------------------+ | % # ! # #####+#####??# ##### * # | | # # #??# #### | | /### # # !!! !#??# ########### #??? | | # # = !! #??# # #?# #### | | # # [!! [ #??# + "" #?# | | # #** #??######### """#?###### | | + %+= ! #??????????# S"#??????? | | == # #= #??????????# [ #??????? | | T == # # ! #??????????#########??????? | | " = # ####+############???????????????????? | | # #??# #?# """ #???????????????????? | | ######## #### ### """ #???????????????????? | | ???????# + """ #???????????????????? | | ???????+ # #???????????????????? | | ???????# # #???????????????????? | | ???????# # #???????????????????? | | ???????# # #???????????????????? | | ???????## ### # #???????????????????? | | ????????# ??# ###+###########+?????????????? | | ????????# ??# ^ #????????????? | | ????????# ??# ########??????????????? | | ????????# ??# ^ #?????????????????????? | | ????????# ??# ^ #?????????????????????? | | ????????# ??# #?????????????????????? | | ???????? ??##########+#######?????????????????? | | ???????? ??????#! *!@ =%* #?????????????????? | | ????????? ?????# Y = !#?????????????????? | | ????????????????## " " """ """=#?????????????????? | | ?????????????????# "" """ """!#?????????????????? | | ?????????????????# """ """ """ #?????????????????? | | ?????????????????# #?????????????????? | | ?????????????????# """ #?????????????????? | | ?????????????????# == """ #?????????????????? | | ?????????????????# =[ """ #?????????????????? | | ?????????????????# =! #?????????????????? | | ?????????????????? ??????????????????? | | ???????????????????#########?##??????????????????? | | | | | | | | | | | | | | | | | | | | | | | | | | | +----------------------------------------------------+ Best States ------------- Heat Dissipation 31 Energy Generation 23 Energy Capacity 325 Matter Stores 300 Matter Capacity 300 Sight Range 16 Robot Scan Range 15 Terrain Scan Range 14 Terrain Scan Density 85 Armor Coverage 450 Evasion (%) 62 Armor Integrity Analysis 30 Recoil Reduction 2 Item Schematics ----------------- None Robot Schematics ------------------ None Fabricated ------------ Nothing Repaired ---------- Nothing Studied --------- None Alien Tech Used ----------------- None Achievements -------------- Heavy Suspicion Let's See Who's Tougher Oops Remodeling Resistances Are Futile Unlikely Earthworm Challenges ------------ None Game ------ Seed OmegaPropulsionAmplifier Manual? 0 Play Time 00:53:20 Cumulative 4.2 hours Start 2026.01.08 @ 19:34:57 End 2026.01.08 @ 20:24:48 Sessions 1 Manual Loads 0 Difficulty Rogue Special Mode None Game No. 13 Rogue 13 Adventurer 0 Explorer 0 Win Type - Total 0 Types 0/0/0/0/0/0/0/0/0/0 Lore% 0 Gallery% 6 Achievement% 6 Wizard Run 0 Options --------- Layout 1 ASCII 0 Keyboard 0 Movement Arrows Keybinds 0 Fullscreen 1 Font 24/Smallcaps Map View 50x35 Zoom Use 0% Tactical HUD 1 Map Filters NONE Filters NONE Steam 1 RUN: 22701db3-1156-46fe-87d1-844209ff7f2c